fUSD/lending_fUSD_20240116
["ID","MTS","AMOUNT","RATE_DAILY","PERIOD"]
[311740339,1705371069640,-963.57,0.00022724,2]
[311740340,1705371069650,-1051.67,0.00022724,2]
[311740341,1705371069660,-537.48032567,0.00022724,2]
[311740342,1705371069669,-500.0,0.00022724,2]
[311740343,1705371069678,-500.0,0.00022724,2]
[311740344,1705371069687,-500.0,0.00022724,2]
[311740345,1705371069696,-500.0,0.00022724,2]
[311740346,1705371069706,-648.69,0.00022724,2]
[311740347,1705371069715,-645.49,0.00022724,2]
[311740348,1705371069724,-500.0,0.00022724,2]
[311740349,1705371069734,-500.0,0.00022724,2]
[311740350,1705371069745,-513.42,0.00022724,2]
[311740351,1705371069753,-605.12,0.00022724,2]
[311740352,1705371069762,-500.0,0.00022724,2]
[311740353,1705371069771,-500.0,0.00022724,2]
[311740354,1705371069780,-500.0,0.00022724,2]
[311740355,1705371069789,-500.0,0.00022724,2]
[311740356,1705371069798,-500.0,0.00022724,2]
[311740357,1705371069807,-500.0,0.00022724,2]
[311740358,1705371069817,-737.17,0.00022724,2]
[311740359,1705371069826,-958.9,0.00022724,2]
[311740360,1705371069835,-500.0,0.00022724,2]
[311740361,1705371069845,-693.32,0.00022724,2]
[311740362,1705371069854,-728.4,0.00022724,2]
[311740363,1705371069864,-1825.06,0.00022724,2]
[311740364,1705371069873,-708.58,0.00022724,2]
[311740365,1705371069883,-500.0,0.00022724,2]
[311740366,1705371069893,-500.0,0.00022724,2]
[311740367,1705371069902,-500.0,0.00022724,2]
[311740368,1705371069912,-422.05511836,0.00022724,2]
[311740369,1705371069922,-513.4674768,0.00022724,2]
[311740370,1705371069931,-857.5,0.00022724,2]
[311740371,1705371069940,-651.14,0.00022724,2]
[311740372,1705371069950,-1089.95,0.00022724,2]
[311740373,1705371069959,-500.0,0.00022724,2]
[311740374,1705371069969,-500.0,0.00022724,2]
[311740375,1705371069978,-823.21,0.00022724,2]
[311740376,1705371069989,-652.55,0.00022724,2]
[311740377,1705371069998,-500.0,0.00022724,2]
[311740378,1705371070007,-500.0,0.00022724,2]
[311740379,1705371070016,-500.0,0.00022724,2]
[311740380,1705371070026,-394.64634697,0.00022724,2]
[311740381,1705371070036,-513.14,0.00022724,2]
[311740382,1705371070045,-1350.46,0.00022724,2]
[311740383,1705371070054,-622.08,0.00022724,2]
[311740384,1705371070063,-500.0,0.00022724,2]
[311740385,1705371070073,-500.0,0.00022724,2]
[311740386,1705371070082,-500.0,0.00022724,2]
[311740387,1705371070091,-500.0,0.00022724,2]
[311740388,1705371070100,-579.29,0.00022724,2]
[311740389,1705371070109,-1228.55,0.00022724,2]
[311740390,1705371070118,-500.0,0.00022724,2]
[311740391,1705371070127,-373.73095921,0.00022724,2]
[311740392,1705371070137,-656.72,0.00022724,2]
[311740393,1705371070147,-970.16,0.00022724,2]
[311740394,1705371070156,-1061.39,0.00022724,2]
[311740395,1705371070165,-500.0,0.00022724,2]
[311740396,1705371070174,-500.0,0.00022724,2]
[311740397,1705371070183,-550.52,0.00022724,2]
[311740398,1705371070193,-1019.16,0.00022724,2]
[311740399,1705371070202,-500.0,0.00022724,2]
[311740400,1705371070211,-500.0,0.00022724,2]
[311740401,1705371070220,-500.0,0.00022724,2]
[311740402,1705371070230,-500.0,0.00022724,2]
[311740403,1705371070241,-759.87,0.00022724,2]
[311740404,1705371070250,-848.44,0.00022724,2]
[311740405,1705371070259,-851.73,0.00022724,2]
[311740406,1705371070267,-519.9,0.00022724,2]
[311740407,1705371070277,-500.0,0.00022724,2]
[311740408,1705371070285,-500.0,0.00022724,2]
[311740409,1705371070296,-601.17,0.00022724,2]
[311740410,1705371070306,-611.87,0.00022724,2]
[311740411,1705371070315,-494.19070803,0.00022724,2]
[311740412,1705371070325,-500.0,0.00022724,2]
[311740413,1705371070334,-759.69,0.00022724,2]
[311740414,1705371070343,-500.0,0.00022724,2]
[311740415,1705371070352,-500.0,0.00022724,2]
[311740416,1705371070361,-861.72,0.00022724,2]
[311740417,1705371070370,-682.28,0.00022724,2]
[311740418,1705371070379,-500.0,0.00022724,2]
[311740419,1705371070389,-500.0,0.00022724,2]
[311740420,1705371070398,-513.83827998,0.00022724,2]
[311740421,1705371070409,-518.96,0.00022724,2]
[311740422,1705371070419,-500.0,0.00022724,2]
[311740423,1705371070429,-500.0,0.00022724,2]
[311740424,1705371070438,-500.0,0.00022724,2]
[311740425,1705371070447,-960.28,0.00022724,2]
[311740426,1705371070457,-1155.22,0.00022724,2]
[311740427,1705371070466,-500.0,0.00022724,2]
[311740428,1705371070475,-500.0,0.00022724,2]
[311740429,1705371070485,-500.0,0.00022724,2]
[311740430,1705371070493,-1417.18,0.00022724,2]
[311740431,1705371070502,-500.0,0.00022724,2]
[311740432,1705371070511,-500.0,0.00022724,2]
[311740433,1705371070520,-1341.19,0.00022724,2]
[311740434,1705371070530,-500.0,0.00022724,2]
[311740435,1705371070539,-500.0,0.00022724,2]
[311740436,1705371070548,-500.0,0.00022724,2]
[311740437,1705371070558,-775.52,0.00022724,2]
[311740438,1705371070567,-429.9474993,0.00022724,2]
[311740439,1705371070576,-500.0,0.00022724,2]
[311740440,1705371070585,-1020.1,0.00022724,2]
[311740441,1705371070595,-500.0,0.00022724,2]
[311740442,1705371070604,-1049.59,0.00022724,2]
[311740443,1705371070614,-928.01,0.00022724,2]
[311740444,1705371070623,-1223.51,0.00022724,2]
[311740445,1705371070632,-500.0,0.00022724,2]
[311740446,1705371070641,-1293.62,0.00022724,2]
[311740447,1705371070651,-613.57,0.00022724,2]
[311740448,1705371070660,-1490.67,0.00022724,2]
[311740449,1705371070670,-1114.7,0.00022724,2]
[311740450,1705371070682,-500.0,0.00022724,2]
[311740451,1705371070691,-597.14,0.00022724,2]
[311740452,1705371070701,-631.28,0.00022724,2]
[311740453,1705371070710,-1794.95,0.00022724,2]
[311740454,1705371070719,-428.64,0.00022724,2]
[311740455,1705371070730,-500.0,0.00022724,2]
[311740456,1705371070741,-785.25,0.00022724,2]
[311740457,1705371070750,-932.92,0.00022724,2]
[311740458,1705371070760,-500.0,0.00022724,2]
[311740459,1705371070884,-500.0,0.00022724,2]
[311740460,1705371070904,-3177.12,0.00022724,2]
[311740461,1705371070913,-816.86,0.00022724,2]
[311740462,1705371070923,-500.0,0.00022724,2]
[311740463,1705371070932,-500.0,0.00022724,2]
[311740464,1705371070942,-3276.28,0.00022724,2]
[311740465,1705371070951,-916.12,0.00022724,2]
[311740466,1705371070961,-622.77,0.00022724,2]
[311740467,1705371070971,-18699.77,0.00022724,2]
[311740468,1705371070981,-500.0,0.00022724,2]
[311740469,1705371070991,-801.51,0.00022724,2]
[311740470,1705371071001,-556.82,0.00022724,2]
[311740471,1705371071010,-619.24,0.00022724,2]
[311740472,1705371071019,-500.0,0.00022724,2]
[311740473,1705371071029,-500.0,0.00022724,2]
[311740474,1705371071039,-855.33,0.00022724,2]
[311740475,1705371071048,-2021.11,0.00022724,2]
[311740476,1705371071057,-500.0,0.00022724,2]
[311740477,1705371071067,-500.0,0.00022724,2]
[311740478,1705371071077,-500.0,0.00022724,2]
[311740479,1705371071087,-848.97,0.00022724,2]
[311740480,1705371071096,-522.59788212,0.00022724,2]
[311740481,1705371071105,-787.12,0.00022724,2]
[311740482,1705371071115,-584.06,0.00022724,2]
[311740483,1705371071125,-611.55,0.00022724,2]
[311740484,1705371071134,-949.23,0.00022724,2]
[311740485,1705371071143,-500.0,0.00022724,2]
[311740486,1705371071154,-1307.17,0.00022724,2]
[311740487,1705371071165,-566.01410222,0.00022724,2]
[311740488,1705371071175,-500.0,0.00022724,2]
[311740489,1705371071184,-500.0,0.00022724,2]
[311740490,1705371071193,-972.52,0.00022724,2]
[311740491,1705371071203,-500.0,0.00022724,2]
[311740492,1705371071212,-1145.96,0.00022724,2]
[311740493,1705371071222,-500.0,0.00022724,2]
[311740494,1705371071232,-389.68405575,0.00022724,2]
[311740495,1705371071241,-729.92,0.00022724,2]
[311740496,1705371071250,-500.0,0.00022724,2]
[311740497,1705371071259,-806.12,0.00022724,2]
[311740498,1705371071269,-659.78,0.00022724,2]
[311740499,1705371071278,-1915.0,0.00022724,2]
[311740500,1705371071288,-655.62,0.00022724,2]
[311740501,1705371071297,-500.0,0.00022724,2]
[311740502,1705371071307,-549.0,0.00022724,2]
[311740503,1705371071317,-310.05177956,0.00022724,2]
[311740504,1705371071327,-300.0,0.00022724,2]
[311740505,1705371071337,-706.93,0.00022724,2]
[311740506,1705371071347,-1343.4,0.00022724,2]
[311740507,1705371071358,-500.0,0.00022724,2]
[311740508,1705371071368,-2695.07,0.00022724,2]
[311740509,1705371071377,-1434.8,0.00022724,2]
[311740510,1705371071387,-550.1996002,0.00022724,2]
[311740511,1705371071396,-1000.0,0.00022724,2]
[311740512,1705371071406,-1307.66,0.00022724,2]
[311740513,1705371071415,-485.27369681,0.00022724,2]
[311740514,1705371071424,-959.48,0.00022724,2]
[311740515,1705371071434,-500.0,0.00022724,2]
[311740516,1705371071443,-151.0,0.00022724,7]
[311740517,1705371071452,-157.441636,0.00022724,7]
[311740518,1705371071462,-151.0,0.00022724,7]
[311740519,1705371071471,-157.28477,0.00022724,7]
[311740520,1705371071481,-151.0,0.00022724,7]
[311740521,1705371071491,-151.0,0.00022724,7]
[311740522,1705371071500,-151.0,0.00022724,7]
[311740523,1705371071509,-151.0,0.00022724,7]
[311740524,1705371071519,-539.08,0.00022725,2]
[311740525,1705371071529,-500.0,0.00022725,2]
[311740526,1705371071540,-500.0,0.00022725,2]
[311740527,1705371071551,-500.0,0.00022725,2]
[311740528,1705371071562,-549.32,0.00022725,2]
[311740529,1705371071572,-500.0,0.00022725,2]
[311740530,1705371071581,-504.31,0.00022725,2]
[311740531,1705371071590,-500.0,0.00022725,2]
[311740532,1705371071600,-300.0,0.00022725,2]
[311740533,1705371071609,-500.0,0.00022725,2]
[311740534,1705371071618,-500.0,0.00022725,2]
[311740535,1705371071629,-748.18,0.00022725,2]
[311740536,1705371071639,-512.69,0.00022725,2]
[311740537,1705371071649,-500.0,0.00022725,2]
[311740538,1705371071660,-500.0,0.00022725,2]
[311740539,1705371071669,-500.0,0.00022725,2]
[311740540,1705371071679,-510.67,0.00022725,2]
[311740541,1705371071688,-719.96,0.00022725,2]
[311740542,1705371071697,-192.04143527,0.00022725,2]
[311740543,1705371071707,-500.0,0.00022725,2]
[311740544,1705371071717,-232.98773667,0.00022725,2]
[311740545,1705371071727,-647.49,0.00022725,2]
[311740546,1705371071738,-500.0,0.00022725,2]
[311740547,1705371071747,-500.0,0.00022725,2]
[311740548,1705371071757,-693.57,0.00022725,2]
[311740549,1705371071766,-769.29,0.00022725,2]
[311740550,1705371071776,-500.0,0.00022725,2]
[311740551,1705371071786,-500.0,0.00022725,2]
[311740552,1705371071795,-737.46,0.00022725,2]
[311740553,1705371071805,-500.0,0.00022725,2]
[311740554,1705371071815,-500.0,0.00022725,2]
[311740555,1705371071824,-500.0,0.00022725,2]
[311740556,1705371071833,-500.0,0.00022725,2]
[311740557,1705371071843,-500.0,0.00022725,2]
[311740558,1705371071853,-693.01,0.00022725,2]
[311740559,1705371071862,-500.0,0.00022725,2]
[311740560,1705371071873,-611.45,0.00022725,2]
[311740561,1705371071883,-500.0,0.00022725,2]
[311740562,1705371071893,-599.48,0.00022725,2]
[311740563,1705371071902,-535.15,0.00022725,2]
[311740564,1705371071912,-776.41,0.00022725,2]
[311740565,1705371071922,-266.46930009,0.00022725,2]
[311740566,1705371071931,-500.0,0.00022725,2]
[311740567,1705371071941,-500.0,0.00022725,2]
[311740568,1705371071950,-523.2,0.00022725,2]
[311740569,1705371071960,-500.0,0.00022725,2]
[311740570,1705371071970,-500.0,0.00022725,2]
[311740571,1705371071979,-500.0,0.00022725,2]
[311740572,1705371071989,-500.0,0.00022725,2]
[311740573,1705371071999,-721.7,0.00022725,2]
[311740574,1705371072009,-500.0,0.00022725,2]
[311740575,1705371072019,-872.17,0.00022725,2]
[311740576,1705371072029,-575.58,0.00022725,2]
[311740577,1705371072038,-533.2,0.00022725,2]
[311740578,1705371072048,-500.0,0.00022725,2]
[311740579,1705371072058,-173.50672531,0.00022725,2]
[311740580,1705371072068,-712.67,0.00022725,2]
[311740581,1705371072077,-931.08,0.00022725,2]
[311740582,1705371072086,-166.64442265,0.00022725,2]
[311740583,1705371072096,-500.0,0.00022725,2]
[311740584,1705371072106,-798.47,0.00022725,2]
[311740585,1705371072115,-500.0,0.00022725,2]
[311740586,1705371072125,-500.0,0.00022725,2]
[311740587,1705371072134,-1171.75,0.00022725,2]
[311740588,1705371072143,-560.65,0.00022725,2]
[311740589,1705371072153,-500.0,0.00022725,2]
[311740590,1705371072162,-500.0,0.00022725,2]
[311740591,1705371072171,-316.38314727,0.00022725,2]
[311740592,1705371072180,-1073.8,0.00022725,2]
[311740593,1705371072190,-777.54,0.00022725,2]
[311740594,1705371072199,-500.0,0.00022725,2]
[311740595,1705371072209,-769.19,0.00022725,2]
[311740596,1705371072218,-500.0,0.00022725,2]
[311740597,1705371072227,-500.0,0.00022725,2]
[311740598,1705371072238,-627.3,0.00022725,2]
[311740599,1705371072247,-500.0,0.00022725,2]
[311740600,1705371072256,-693.9,0.00022725,2]
[311740601,1705371072265,-607.6,0.00022725,2]
[311740602,1705371072275,-500.0,0.00022725,2]
[311740603,1705371072285,-786.35,0.00022725,2]
[311740604,1705371072294,-500.0,0.00022725,2]
[311740605,1705371072303,-662.01,0.00022725,2]
[311740606,1705371072313,-500.0,0.00022725,2]
[311740607,1705371072323,-546.46,0.00022725,2]
[311740608,1705371072332,-1229.25,0.00022725,2]
[311740609,1705371072342,-500.0,0.00022725,2]
[311740610,1705371072353,-500.0,0.00022725,2]
[311740611,1705371072362,-1333.29,0.00022725,2]
[311740612,1705371072372,-500.0,0.00022725,2]
[311740613,1705371072382,-1083.85,0.00022725,2]
[311740614,1705371072391,-570.9,0.00022725,2]
[311740615,1705371072401,-1129.06,0.00022725,2]
[311740616,1705371072410,-179.17424551,0.00022725,2]
[311740617,1705371072419,-500.0,0.00022725,2]
[311740618,1705371072429,-500.0,0.00022725,2]
[311740619,1705371072439,-974.15,0.00022725,2]
[311740620,1705371072448,-530.38,0.00022725,2]
[311740621,1705371072458,-500.0,0.00022725,2]
[311740622,1705371072467,-830.83,0.00022725,2]
[311740623,1705371072477,-878.33,0.00022725,2]
[311740624,1705371072488,-500.0,0.00022725,2]
[311740625,1705371072498,-730.09,0.00022725,2]
[311740626,1705371072507,-1224.09,0.00022725,2]
[311740627,1705371072517,-520.29431501,0.00022725,2]
[311740628,1705371072527,-500.0,0.00022725,2]
[311740629,1705371072536,-3426.97,0.00022725,2]
[311740630,1705371072546,-500.0,0.00022725,2]
[311740631,1705371072555,-909.86,0.00022725,2]
[311740632,1705371072565,-500.0,0.00022725,2]
[311740633,1705371072575,-500.0,0.00022725,2]
[311740634,1705371072584,-500.0,0.00022725,2]
[311740635,1705371072593,-3387.28,0.00022725,2]
[311740636,1705371072603,-807.4,0.00022725,2]
[311740637,1705371072612,-926.13,0.00022725,2]
[311740638,1705371072622,-500.0,0.00022725,2]
[311740639,1705371072632,-538.61,0.00022725,2]
[311740640,1705371072641,-500.0,0.00022725,2]
[311740641,1705371072651,-523.06407422,0.00022725,2]
[311740642,1705371072660,-766.72,0.00022725,2]
[311740643,1705371072670,-500.0,0.00022725,2]
[311740644,1705371072681,-781.69,0.00022725,2]
[311740645,1705371072695,-870.19,0.00022725,2]
[311740646,1705371072704,-1178.91,0.00022725,2]
[311740647,1705371072713,-500.0,0.00022725,2]
[311740648,1705371072723,-640.19,0.00022725,2]
[311740649,1705371072733,-500.0,0.00022725,2]
[311740650,1705371072745,-703.48,0.00022725,2]
[311740651,1705371072755,-360.69976538,0.00022725,2]
[311740652,1705371072767,-500.0,0.00022725,2]
[311740653,1705371072775,-500.0,0.00022725,2]
[311740654,1705371072785,-525.25459496,0.00022725,2]
[311740655,1705371072794,-500.0,0.00022725,2]
[311740656,1705371072802,-500.0,0.00022725,2]
[311740657,1705371072812,-697.6,0.00022725,2]
[311740658,1705371072821,-500.0,0.00022725,2]
[311740659,1705371072830,-591.99,0.00022725,2]
[311740660,1705371072838,-500.0,0.00022725,2]
[311740661,1705371072848,-500.0,0.00022725,2]
[311740662,1705371072857,-643.8,0.00022725,2]
[311740663,1705371072867,-1411.49,0.00022725,2]
[311740664,1705371072877,-440.58770349,0.00022725,2]
[311740665,1705371072887,-477.37672572,0.00022725,2]
[311740666,1705371072897,-500.0,0.00022725,2]
[311740667,1705371072906,-500.0,0.00022725,2]
[311740668,1705371072916,-500.0,0.00022725,2]
[311740669,1705371072925,-570.66,0.00022725,2]
[311740670,1705371072935,-730.52,0.00022725,2]
[311740671,1705371072944,-500.0,0.00022725,2]
[311740672,1705371072954,-500.0,0.00022725,2]
[311740673,1705371072963,-1086.56,0.00022725,2]
[311740674,1705371072973,-500.0,0.00022725,2]
[311740675,1705371072982,-517.5468718,0.00022725,2]
[311740676,1705371073311,-500.0,0.00022725,2]
[311740677,1705371073322,-1511.6,0.00022725,2]
[311740678,1705371073331,-500.0,0.00022725,2]
[311740679,1705371073341,-514.09,0.00022725,2]
[311740680,1705371073350,-710.37,0.00022725,2]
[311740681,1705371073361,-517.60839303,0.00022725,2]
[311740682,1705371073370,-564.04773182,0.00022725,2]
[311740683,1705371073379,-500.0,0.00022725,2]
[311740684,1705371073389,-1130.1,0.00022725,2]
[311740685,1705371073398,-500.0,0.00022725,2]
[311740686,1705371073407,-500.0,0.00022725,2]
[311740687,1705371073416,-560.32,0.00022725,2]
[311740688,1705371073426,-500.0,0.00022725,2]
[311740689,1705371073436,-793.36,0.00022725,2]
[311740690,1705371073446,-773.25,0.00022725,2]
[311740691,1705371073455,-152.63,0.00022741,2]
[311740692,1705371073466,-151.85,0.00022752,2]
[311740693,1705371073475,-153.0,0.00022766,2]
[311740694,1705371073484,-153.0,0.00022766,2]
[311740695,1705371073494,-153.0,0.00022766,2]
[311740696,1705371073504,-800.0,0.00022779,2]
[311740697,1705371073513,-222.39,0.00022795,2]
[311740698,1705371073523,-500.0,0.00022796,2]
[311740699,1705371073532,-1899.56,0.00022803,2]
[311740700,1705371073543,-802.3,0.00022803,2]
[311740701,1705371073553,-42861.47555822,0.00022832,2]
[311740702,1705371073563,-151.0,0.00022832,7]
[311740703,1705371073573,-151.882502,0.00022832,7]
[311740704,1705371073583,-151.882502,0.00022832,7]
[311740705,1705371073592,-151.0,0.00022832,7]
[311740706,1705371073601,-151.0,0.00022832,7]
[311740707,1705371073611,-151.0,0.00022832,7]
[311740708,1705371073621,-800.0,0.00022842,2]
[311740709,1705371073631,-500.0,0.00022875,2]
[311740710,1705371073641,-151.85,0.00022885,2]
[311740711,1705371073650,-12261.18046386,0.000229,2]
[311740712,1705371073660,-168.24633946,0.000229,2]
[311740713,1705371073670,-168.24633946,0.000229,2]
[311740714,1705371073680,-168.24633946,0.000229,2]
[311740715,1705371073690,-168.24633946,0.000229,2]
[311740716,1705371073701,-168.24633946,0.000229,2]
[311740717,1705371073711,-168.24633946,0.000229,2]
[311740718,1705371073721,-168.24633946,0.000229,2]
[311740719,1705371073730,-690.46046357,0.000229,2]
[311740720,1705371073740,-690.4604635,0.000229,2]
[311740721,1705371073750,-690.4604635,0.000229,2]
[311740722,1705371073759,-690.4604635,0.000229,2]
[311740723,1705371073769,-690.4604635,0.000229,2]
[311740724,1705371073778,-690.4604635,0.000229,2]
[311740725,1705371073789,-690.4604635,0.000229,2]
[311740726,1705371073799,-690.4604635,0.000229,2]
[311740727,1705371073808,-690.4604635,0.000229,2]
[311740728,1705371073818,-690.4604635,0.000229,2]
[311740729,1705371073828,-690.4604635,0.000229,2]
[311740730,1705371073838,-690.4604635,0.000229,2]
[311740731,1705371073847,-690.4604635,0.000229,2]
[311740732,1705371073857,-690.4604635,0.000229,2]
[311740733,1705371073866,-690.4604635,0.000229,2]
[311740734,1705371073876,-1560.0,0.000229,2]
[311740735,1705371073886,-690.4604635,0.000229,2]
[311740736,1705371073896,-690.4604635,0.000229,2]
[311740737,1705371073905,-690.4604635,0.000229,2]
[311740738,1705371073915,-690.4604635,0.000229,2]
[311740739,1705371073924,-690.4604635,0.000229,2]
[311740740,1705371073934,-800.0,0.00022904,2]
[311740741,1705371073943,-418.16,0.00022904,2]
[311740742,1705371073953,-272.5,0.00022904,2]
[311740743,1705371073963,-314.4,0.00022904,2]
[311740744,1705371073973,-314.4,0.00022904,2]
[311740745,1705371073982,-294.16,0.00022904,2]
[311740746,1705371073992,-418.16,0.00022904,2]
[311740747,1705371074001,-294.16,0.00022904,2]
[311740748,1705371074011,-418.16,0.00022904,2]
[311740749,1705371074021,-418.16,0.00022904,2]
[311740750,1705371074030,-294.16,0.00022904,2]
[311740751,1705371074040,-836.32,0.00022904,2]
[311740752,1705371074049,-418.16,0.00022904,2]
[311740753,1705371074059,-418.16,0.00022904,2]
[311740754,1705371074068,-418.16,0.00022904,2]
[311740755,1705371074077,-152.63,0.00022905,2]
[311740756,1705371074086,-155.89,0.00022964,2]
[311740757,1705371074095,-800.0,0.00022966,2]
[311740758,1705371074105,-500.0,0.00022982,2]
[311740759,1705371074114,-1095.95,0.00022985,2]
[311740760,1705371074124,-647.11,0.00022985,2]
[311740761,1705371074134,-3799.98,0.00022986,2]
[311740762,1705371074143,-677.87,0.00022986,2]
[311740763,1705371074152,-567.6,0.00022986,2]
[311740764,1705371074162,-760.92,0.00022986,2]
[311740765,1705371074172,-796.58,0.00022986,2]
[311740766,1705371074181,-15787.94,0.00022986,2]
[311740767,1705371074190,-1376.52,0.00022986,2]
[311740768,1705371074200,-1384.44,0.00022986,2]
[311740769,1705371074209,-1148.4,0.00022987,2]
[311740770,1705371074219,-2387.74,0.00022987,2]
[311740771,1705371074228,-500.0,0.00022987,2]
[311740772,1705371074238,-1967.67,0.00022987,2]
[311740773,1705371074247,-1307.79,0.00022987,2]
[311740774,1705371074257,-1403.11,0.00022987,2]
[311740775,1705371074267,-3318.99,0.00022987,2]
[311740776,1705371074276,-1547.62,0.00022987,2]
[311740777,1705371074286,-1566.42,0.00022987,2]
[311740778,1705371074295,-1757.6,0.00022987,2]
[311740779,1705371074304,-2460.15,0.00022989,2]
[311740780,1705371074314,-3819.59,0.00022989,2]
[311740781,1705371074323,-917.34,0.00022989,2]
[311740782,1705371074333,-1336.75,0.00022989,2]
[311740783,1705371074342,-1788.68,0.00022989,2]
[311740784,1705371074351,-1136.99,0.00022989,2]
[311740785,1705371074361,-1044.24,0.00022989,2]
[311740786,1705371074370,-1999.04,0.00022989,2]
[311740787,1705371074379,-942.35,0.00022989,2]
[311740788,1705371074388,-676.81,0.00022989,2]
[311740789,1705371074397,-500.0,0.00022989,5]
[311740790,1705371074407,-998.52,0.00022989,2]
[311740791,1705371074416,-4708.11,0.00022989,2]
[311740792,1705371074425,-26632.93,0.00022989,2]
[311740793,1705371074435,-9449.3,0.00022989,2]
[311740794,1705371074444,-2136.99,0.00022989,2]
[311740795,1705371074453,-14211.24,0.00022989,2]
[311740796,1705371074463,-457.90215272,0.00022989,2]
[311740797,1705371074472,-3297.37,0.00022989,2]
[311740798,1705371074481,-1286.7,0.00022989,2]
[311740799,1705371074491,-2175.33,0.00022989,2]
[311740800,1705371074501,-1576.36,0.00022989,2]
[311740801,1705371074510,-1881.27,0.00022989,2]
[311740802,1705371074519,-740.69,0.00022989,2]
[311740803,1705371074529,-894.94,0.00022989,2]
[311740804,1705371074538,-8119.55,0.00022989,2]
[311740805,1705371074547,-1852.13,0.00022989,2]
[311740806,1705371074556,-1722.56,0.00022989,2]
[311740807,1705371074566,-548.95,0.00022989,2]
[311740808,1705371074575,-1509.09,0.00022989,2]
[311740809,1705371074585,-825.03,0.00022989,2]
[311740810,1705371074594,-151.0,0.00022989,7]
[311740811,1705371074603,-151.0,0.00022989,7]
[311740812,1705371074613,-248.185133,0.00022989,7]
[311740813,1705371074622,-194.947721,0.00022989,7]
[311740814,1705371074631,-151.0,0.00022989,7]
[311740815,1705371074640,-151.0,0.00022989,7]
[311740816,1705371074649,-259.52167,0.00022989,2]
[311740817,1705371074658,-259.52167,0.00022989,2]
[311740818,1705371074667,-541.28,0.00022993,2]
[311740819,1705371074677,-500.0,0.00022993,2]
[311740820,1705371074690,-544.11,0.00022993,2]
[311740821,1705371074700,-500.0,0.00022993,2]
[311740822,1705371074709,-1697.37,0.00022993,2]
[311740823,1705371074718,-500.0,0.00022993,2]
[311740824,1705371074730,-740.7,0.00022993,2]
[311740825,1705371074739,-500.0,0.00022993,2]
[311740826,1705371074749,-500.0,0.00022993,2]
[311740827,1705371074758,-500.0,0.00022993,2]
[311740828,1705371074769,-974.55,0.00022993,2]
[311740829,1705371074780,-500.0,0.00022993,2]
[311740830,1705371074790,-916.18,0.00022993,2]
[311740831,1705371074800,-762.78,0.00022993,2]
[311740832,1705371074810,-500.0,0.00022993,2]
[311740833,1705371074820,-771.15,0.00022993,2]
[311740834,1705371074831,-500.0,0.00022993,2]
[311740835,1705371074841,-810.6,0.00022993,2]
[311740836,1705371074851,-500.0,0.00022993,2]
[311740837,1705371074862,-1215.22,0.00022993,2]
[311740838,1705371074873,-622.68,0.00022993,2]